Workbook

Sheet Заставка

Sheet Меню

Sheet Услуги
E15: Цена, т/км
C16: Код товара | D16: Наименование | E16: <=20 км | F16: 20..100 км | G16: >100 км
C17: 1 | D17: Гравий | E17: 500 | F17: 450 | G17: 400
C18: 2 | D18: Доски | E18: 400 | F18: 350 | G18: 300
C19: 3 | D19: Кирпич | E19: 150 | F19: 130 | G19: 110
C20: 4 | D20: Песок | E20: 300 | F20: 260 | G20: 220
C21: 5 | D21: Цемент | E21: 250 | F21: 210 | G21: 180
C22: 6 | D22: Щебень | E22: 100 | F22: 90 | G22: 80

Sheet Продажи
C3: Сортировать по..
Q5: Дата продажи
C6: Критерии | D6: Дата продажи | E6: Наименование | F6: Количество | G6: Цена | H6: Сумма | Q6: Код товара
C7: поиска | E7: Щебень | F7: >6 | Q7: Наименование
Q8: Количество
Q9: Цена
Q10: Сумма
B11: Заказ | C11: Дата | D11: Код товара | E11: Наименование | F11: Количество | G11: Расстояние | H11: Цена | I11: Сумма | J11: Сотрудник | Q11: 1
B12: 1 | C12: 2015-10-06 | D12: 5 | E12: Кирпич | F12: 11 | G12: 11 | H12: 150 | I12: 18150 | J12: Смирнова
B13: 2 | C13: 2015-10-06 | D13: 5 | E13: Кирпич | F13: 11 | G13: 11 | H13: 150 | I13: 18150 | J13: Смирнова | Q13: Щебень
B14: 3 | C14: 2009-10-01 | D14: 1 | E14: =VLOOKUP(D14,Справочник_товары,2) -> Гравий | F14: 5 | G14: 29 | H14: =VLOOKUP(D14,Услуги!$C$17:$E$22,3) -> 500 | I14: =F14*G14*H14 -> 72500 | J14: Баранова | Q14: Керпич
B15: 4 | C15: 2009-10-01 | D15: 2 | E15: Доски | F15: 5 | G15: 13 | H15: =VLOOKUP(D15,Услуги!$C$17:$E$22,3) -> 400 | I15: 26000 | J15: Смирнова | Q15: Цемент
B16: 5 | C16: 2009-10-01 | D16: 2 | E16: Доски | F16: 6 | G16: 20 | H16: =VLOOKUP(D16,Услуги!$C$17:$E$22,3) -> 400 | I16: 48000 | J16: Смирнова | Q16: Песок
B17: 6 | C17: 2009-10-01 | D17: 3 | E17: Кирпич | F17: 7 | G17: 22 | H17: =VLOOKUP(D17,Услуги!$C$17:$E$22,3) -> 150 | I17: 23100 | J17: Баранова | Q17: Доски
B18: 7 | C18: 2009-10-02 | D18: 2 | E18: Доски | F18: 1 | G18: 22 | H18: =VLOOKUP(D18,Услуги!$C$17:$E$22,3) -> 400 | I18: 8800 | J18: Меньшова | Q18: Грави
B19: 8 | C19: 2009-10-02 | D19: 6 | E19: Щебень | F19: 3 | G19: 25 | H19: =VLOOKUP(D19,Услуги!$C$17:$E$22,3) -> 100 | I19: 7500 | J19: Меньшова
B20: 9 | C20: 2009-10-02 | D20: 1 | E20: Гравий | F20: 5 | G20: 18 | H20: =VLOOKUP(D20,Услуги!$C$17:$E$22,3) -> 500 | I20: 45000 | J20: Смирнова
B21: 10 | C21: 2009-10-02 | D21: 1 | E21: Гравий | F21: 5 | G21: 19 | H21: =VLOOKUP(D21,Услуги!$C$17:$E$22,3) -> 500 | I21: 47500 | J21: Баранова
B22: 11 | C22: 2009-10-02 | D22: 3 | E22: Кирпич | F22: 5 | G22: 22 | H22: =VLOOKUP(D22,Услуги!$C$17:$E$22,3) -> 150 | I22: 16500 | J22: Смирнова
B23: 12 | C23: 2009-10-02 | D23: 3 | E23: Кирпич | F23: 5 | G23: 25 | H23: =VLOOKUP(D23,Услуги!$C$17:$E$22,3) -> 150 | I23: 18750 | J23: Баранова
B24: 13 | C24: 2009-10-02 | D24: 4 | E24: Песок | F24: 5 | G24: 22 | H24: =VLOOKUP(D24,Услуги!$C$17:$E$22,3) -> 300 | I24: 33000 | J24: Баранова
B25: 14 | C25: 2009-10-02 | D25: 6 | E25: Щебень | F25: 5 | G25: 23 | H25: =VLOOKUP(D25,Услуги!$C$17:$E$22,3) -> 100 | I25: 11500 | J25: Баранова
B26: 15 | C26: 2009-10-02 | D26: 3 | E26: Кирпич | F26: 6 | G26: 9 | H26: =VLOOKUP(D26,Услуги!$C$17:$E$22,3) -> 150 | I26: 8100 | J26: Смирнова
B27: 16 | C27: 2009-10-02 | D27: 1 | E27: Гравий | F27: 7 | G27: 11 | H27: =VLOOKUP(D27,Услуги!$C$17:$E$22,3) -> 500 | I27: 38500 | J27: Меньшова
B28: 17 | C28: 2009-10-02 | D28: 1 | E28: Гравий | F28: 7 | G28: 22 | H28: =VLOOKUP(D28,Услуги!$C$17:$E$22,3) -> 500 | I28: 77000 | J28: Меньшова
B29: 18 | C29: 2009-10-02 | D29: 1 | E29: Гравий | F29: 7 | G29: 5 | H29: =VLOOKUP(D29,Услуги!$C$17:$E$22,3) -> 500 | I29: 17500 | J29: Смирнова
B30: 19 | C30: 2009-10-02 | D30: 4 | E30: Песок | F30: 7 | G30: 23 | H30: =VLOOKUP(D30,Услуги!$C$17:$E$22,3) -> 300 | I30: 48300 | J30: Баранова
B31: 20 | C31: 2009-10-02 | D31: 3 | E31: Кирпич | F31: 8 | G31: 18 | H31: =VLOOKUP(D31,Услуги!$C$17:$E$22,3) -> 150 | I31: 21600 | J31: Меньшова
B32: 21 | C32: 2009-10-02 | D32: 6 | E32: Щебень | F32: 9 | G32: 10 | H32: =VLOOKUP(D32,Услуги!$C$17:$E$22,3) -> 100 | I32: 9000 | J32: Смирнова
B33: 22 | C33: 2009-10-02 | D33: 1 | E33: Гравий | F33: 10 | G33: 29 | H33: =VLOOKUP(D33,Услуги!$C$17:$E$22,3) -> 500 | I33: 145000 | J33: Баранова
B34: 23 | C34: 2009-10-03 | D34: 1 | E34: Гравий | F34: 2 | G34: 17 | H34: =VLOOKUP(D34,Услуги!$C$17:$E$22,3) -> 500 | I34: 17000 | J34: Баранова
B35: 24 | C35: 2009-10-03 | D35: 2 | E35: Доски | F35: 2 | G35: 12 | H35: =VLOOKUP(D35,Услуги!$C$17:$E$22,3) -> 400 | I35: 9600 | J35: Баранова
B36: 25 | C36: 2009-10-03 | D36: 3 | E36: Кирпич | F36: 4 | G36: 10 | H36: =VLOOKUP(D36,Услуги!$C$17:$E$22,3) -> 150 | I36: 6000 | J36: Меньшова
B37: 26 | C37: 2009-10-03 | D37: 5 | E37: Цемент | F37: 4 | G37: 29 | H37: =VLOOKUP(D37,Услуги!$C$17:$E$22,3) -> 250 | I37: 29000 | J37: Смирнова
B38: 27 | C38: 2009-10-03 | D38: 1 | E38: Гравий | F38: 6 | G38: 28 | H38: =VLOOKUP(D38,Услуги!$C$17:$E$22,3) -> 500 | I38: 84000 | J38: Баранова
B39: 28 | C39: 2009-10-03 | D39: 3 | E39: Кирпич | F39: 6 | G39: 14 | H39: =VLOOKUP(D39,Услуги!$C$17:$E$22,3) -> 150 | I39: 12600 | J39: Смирнова
B40: 29 | C40: 2009-10-03 | D40: 3 | E40: Кирпич | F40: 7 | G40: 11 | H40: =VLOOKUP(D40,Услуги!$C$17:$E$22,3) -> 150 | I40: 11550 | J40: Меньшова
B41: 30 | C41: 2009-10-03 | D41: 1 | E41: Гравий | F41: 8 | G41: 17 | H41: =VLOOKUP(D41,Услуги!$C$17:$E$22,3) -> 500 | I41: 68000 | J41: Меньшова
B42: 31 | C42: 2009-10-03 | D42: 2 | E42: Доски | F42: 8 | G42: 22 | H42: =VLOOKUP(D42,Услуги!$C$17:$E$22,3) -> 400 | I42: 70400 | J42: Меньшова
B43: 32 | C43: 2009-10-03 | D43: 3 | E43: Кирпич | F43: 9 | G43: 18 | H43: =VLOOKUP(D43,Услуги!$C$17:$E$22,3) -> 150 | I43: 24300 | J43: Смирнова
B44: 33 | C44: 2009-10-03 | D44: 3 | E44: Кирпич | F44: 10 | G44: 23 | H44: =VLOOKUP(D44,Услуги!$C$17:$E$22,3) -> 150 | I44: 34500 | J44: Баранова
B45: 34 | C45: 2009-10-04 | D45: 1 | E45: Гравий | F45: 1 | G45: 11 | H45: =VLOOKUP(D45,Услуги!$C$17:$E$22,3) -> 500 | I45: 5500 | J45: Баранова
B46: 35 | C46: 2009-10-04 | D46: 3 | E46: Кирпич | F46: 1 | G46: 27 | H46: =VLOOKUP(D46,Услуги!$C$17:$E$22,3) -> 150 | I46: 4050 | J46: Меньшова
B47: 36 | C47: 2009-10-04 | D47: 2 | E47: Доски | F47: 2 | G47: 12 | H47: =VLOOKUP(D47,Услуги!$C$17:$E$22,3) -> 400 | I47: 9600 | J47: Баранова
B48: 37 | C48: 2009-10-04 | D48: 1 | E48: Гравий | F48: 3 | G48: 15 | H48: =VLOOKUP(D48,Услуги!$C$17:$E$22,3) -> 500 | I48: 22500 | J48: Меньшова
B49: 38 | C49: 2009-10-04 | D49: 2 | E49: Доски | F49: 3 | G49: 18 | H49: =VLOOKUP(D49,Услуги!$C$17:$E$22,3) -> 400 | I49: 21600 | J49: Меньшова
B50: 39 | C50: 2009-10-04 | D50: 6 | E50: Щебень | F50: 3 | G50: 5 | H50: =VLOOKUP(D50,Услуги!$C$17:$E$22,3) -> 100 | I50: 1500 | J50: Баранова
B51: 40 | C51: 2009-10-04 | D51: 2 | E51: Доски | F51: 4 | G51: 23 | H51: =VLOOKUP(D51,Услуги!$C$17:$E$22,3) -> 400 | I51: 36800 | J51: Смирнова
B52: 41 | C52: 2009-10-04 | D52: 1 | E52: Гравий | F52: 6 | G52: 23 | H52: =VLOOKUP(D52,Услуги!$C$17:$E$22,3) -> 500 | I52: 69000 | J52: Меньшова
B53: 42 | C53: 2009-10-04 | D53: 2 | E53: Доски | F53: 8 | G53: 26 | H53: =VLOOKUP(D53,Услуги!$C$17:$E$22,3) -> 400 | I53: 83200 | J53: Меньшова
B54: 43 | C54: 2009-10-04 | D54: 5 | E54: Цемент | F54: 9 | G54: 7 | H54: =VLOOKUP(D54,Услуги!$C$17:$E$22,3) -> 250 | I54: 15750 | J54: Смирнова
B55: 44 | C55: 2009-10-04 | D55: 6 | E55: Щебень | F55: 10 | G55: 13 | H55: =VLOOKUP(D55,Услуги!$C$17:$E$22,3) -> 100 | I55: 13000 | J55: Баранова
B56: 45 | C56: 2009-10-05 | D56: 1 | E56: Гравий | F56: 1 | G56: 20 | H56: =VLOOKUP(D56,Услуги!$C$17:$E$22,3) -> 500 | I56: 10000 | J56: Смирнова
B57: 46 | C57: 2009-10-05 | D57: 3 | E57: Кирпич | F57: 1 | G57: 8 | H57: =VLOOKUP(D57,Услуги!$C$17:$E$22,3) -> 150 | I57: 1200 | J57: Меньшова
B58: 47 | C58: 2009-10-05 | D58: 6 | E58: Щебень | F58: 2 | G58: 10 | H58: =VLOOKUP(D58,Услуги!$C$17:$E$22,3) -> 100 | I58: 2000 | J58: Баранова
B59: 48 | C59: 2009-10-05 | D59: 1 | E59: Гравий | F59: 5 | G59: 11 | H59: =VLOOKUP(D59,Услуги!$C$17:$E$22,3) -> 500 | I59: 27500 | J59: Смирнова
B60: 49 | C60: 2009-10-05 | D60: 1 | E60: Гравий | F60: 8 | G60: 16 | H60: =VLOOKUP(D60,Услуги!$C$17:$E$22,3) -> 500 | I60: 64000 | J60: Смирнова
B61: 50 | C61: 2009-10-05 | D61: 2 | E61: Доски | F61: 10 | G61: 11 | H61: =VLOOKUP(D61,Услуги!$C$17:$E$22,3) -> 400 | I61: 44000 | J61: Меньшова
B62: 51 | C62: 2009-10-05 | D62: 5 | E62: Цемент | F62: 10 | G62: 11 | H62: =VLOOKUP(D62,Услуги!$C$17:$E$22,3) -> 250 | I62: 27500 | J62: Баранова
B63: 52 | C63: 2009-10-06 | D63: 1 | E63: Гравий | F63: 2 | G63: 20 | H63: =VLOOKUP(D63,Услуги!$C$17:$E$22,3) -> 500 | I63: 20000 | J63: Смирнова
B64: 53 | C64: 2009-10-06 | D64: 5 | E64: Цемент | F64: 2 | G64: 28 | H64: =VLOOKUP(D64,Услуги!$C$17:$E$22,3) -> 250 | I64: 14000 | J64: Смирнова
B65: 54 | C65: 2009-10-06 | D65: 2 | E65: Доски | F65: 3 | G65: 10 | H65: =VLOOKUP(D65,Услуги!$C$17:$E$22,3) -> 400 | I65: 12000 | J65: Баранова
B66: 55 | C66: 2009-10-06 | D66: 6 | E66: Щебень | F66: 4 | G66: 29 | H66: =VLOOKUP(D66,Услуги!$C$17:$E$22,3) -> 100 | I66: 11600 | J66: Смирнова
B67: 56 | C67: 2009-10-06 | D67: 3 | E67: Кирпич | F67: 5 | G67: 24 | H67: =VLOOKUP(D67,Услуги!$C$17:$E$22,3) -> 150 | I67: 18000 | J67: Смирнова
B68: 57 | C68: 2009-10-06 | D68: 4 | E68: Песок | F68: 6 | G68: 9 | H68: =VLOOKUP(D68,Услуги!$C$17:$E$22,3) -> 300 | I68: 16200 | J68: Меньшова
B69: 58 | C69: 2009-10-06 | D69: 2 | E69: Доски | F69: 7 | G69: 25 | H69: =VLOOKUP(D69,Услуги!$C$17:$E$22,3) -> 400 | I69: 70000 | J69: Меньшова
B70: 59 | C70: 2009-10-06 | D70: 4 | E70: Песок | F70: 7 | G70: 8 | H70: =VLOOKUP(D70,Услуги!$C$17:$E$22,3) -> 300 | I70: 16800 | J70: Смирнова
B71: 60 | C71: 2009-10-06 | D71: 4 | E71: Песок | F71: 8 | G71: 21 | H71: =VLOOKUP(D71,Услуги!$C$17:$E$22,3) -> 300 | I71: 50400 | J71: Смирнова
B72: 61 | C72: 2009-10-06 | D72: 5 | E72: Цемент | F72: 8 | G72: 8 | H72: =VLOOKUP(D72,Услуги!$C$17:$E$22,3) -> 250 | I72: 16000 | J72: Смирнова
B73: 62 | C73: 2009-10-06 | D73: 1 | E73: Гравий | F73: 9 | G73: 11 | H73: =VLOOKUP(D73,Услуги!$C$17:$E$22,3) -> 500 | I73: 49500 | J73: Меньшова
B74: 63 | C74: 2009-10-06 | D74: 5 | E74: Цемент | F74: 10 | G74: 13 | H74: =VLOOKUP(D74,Услуги!$C$17:$E$22,3) -> 250 | I74: 32500 | J74: Смирнова
B75: 64 | C75: 2009-10-07 | D75: 3 | E75: Кирпич | F75: 1 | G75: 9 | H75: =VLOOKUP(D75,Услуги!$C$17:$E$22,3) -> 150 | I75: 1350 | J75: Смирнова
B76: 65 | C76: 2009-10-07 | D76: 3 | E76: =VLOOKUP(D76,Справочник_товары,2) -> Кирпич | F76: 1 | G76: 20 | H76: =VLOOKUP(D76,Услуги!$C$17:$E$22,3) -> 150 | I76: 3000 | J76: Баранова
B77: 66 | C77: 2009-10-07 | D77: 2 | E77: Доски | F77: 2 | G77: 17 | H77: =VLOOKUP(D77,Услуги!$C$17:$E$22,3) -> 400 | I77: =F77*G77*H77 -> 13600 | J77: Смирнова
B78: 67 | C78: 2009-10-07 | D78: 1 | E78: Гравий | F78: 3 | G78: 22 | H78: =VLOOKUP(D78,Услуги!$C$17:$E$22,3) -> 500 | I78: 33000 | J78: Смирнова
B79: 68 | C79: 2009-10-07 | D79: 1 | E79: Гравий | F79: 4 | G79: 7 | H79: =VLOOKUP(D79,Услуги!$C$17:$E$22,3) -> 500 | I79: 14000 | J79: Баранова
B80: 69 | C80: 2009-10-07 | D80: 2 | E80: Доски | F80: 4 | G80: 21 | H80: =VLOOKUP(D80,Услуги!$C$17:$E$22,3) -> 400 | I80: 33600 | J80: Меньшова
B81: 70 | C81: 2009-10-07 | D81: 4 | E81: Песок | F81: 4 | G81: 15 | H81: =VLOOKUP(D81,Услуги!$C$17:$E$22,3) -> 300 | I81: 18000 | J81: Баранова
B82: 71 | C82: 2009-10-07 | D82: 6 | E82: Щебень | F82: 7 | G82: 5 | H82: =VLOOKUP(D82,Услуги!$C$17:$E$22,3) -> 100 | I82: 3500 | J82: Смирнова
B83: 72 | C83: 2009-10-07 | D83: 2 | E83: Доски | F83: 8 | G83: 26 | H83: =VLOOKUP(D83,Услуги!$C$17:$E$22,3) -> 400 | I83: 83200 | J83: Смирнова
B84: 73 | C84: 2009-10-07 | D84: 6 | E84: Щебень | F84: 8 | G84: 14 | H84: =VLOOKUP(D84,Услуги!$C$17:$E$22,3) -> 100 | I84: 11200 | J84: Баранова
B85: 74 | C85: 2009-10-07 | D85: 5 | E85: Цемент | F85: 10 | G85: 29 | H85: =VLOOKUP(D85,Услуги!$C$17:$E$22,3) -> 250 | I85: 72500 | J85: Смирнова
B86: 75 | C86: 2009-10-08 | D86: 1 | E86: Гравий | F86: 3 | G86: 19 | H86: =VLOOKUP(D86,Услуги!$C$17:$E$22,3) -> 500 | I86: 28500 | J86: Баранова
B87: 76 | C87: 2009-10-08 | D87: 2 | E87: Доски | F87: 3 | G87: 5 | H87: =VLOOKUP(D87,Услуги!$C$17:$E$22,3) -> 400 | I87: 6000 | J87: Баранова
B88: 77 | C88: 2009-10-08 | D88: 3 | E88: Кирпич | F88: 3 | G88: 12 | H88: =VLOOKUP(D88,Услуги!$C$17:$E$22,3) -> 150 | I88: 5400 | J88: Баранова
B89: 78 | C89: 2009-10-08 | D89: 3 | E89: Кирпич | F89: 4 | G89: 28 | H89: =VLOOKUP(D89,Услуги!$C$17:$E$22,3) -> 150 | I89: 16800 | J89: Баранова
B90: 79 | C90: 2009-10-08 | D90: 4 | E90: Песок | F90: 4 | G90: 7 | H90: =VLOOKUP(D90,Услуги!$C$17:$E$22,3) -> 300 | I90: 8400 | J90: Меньшова
B91: 80 | C91: 2009-10-08 | D91: 6 | E91: Щебень | F91: 4 | G91: 25 | H91: =VLOOKUP(D91,Услуги!$C$17:$E$22,3) -> 100 | I91: 10000 | J91: Смирнова
B92: 81 | C92: 2009-10-08 | D92: 6 | E92: Щебень | F92: 4 | G92: 23 | H92: =VLOOKUP(D92,Услуги!$C$17:$E$22,3) -> 100 | I92: 9200 | J92: Смирнова
B93: 82 | C93: 2009-10-08 | D93: 1 | E93: Гравий | F93: 8 | G93: 21 | H93: =VLOOKUP(D93,Услуги!$C$17:$E$22,3) -> 500 | I93: 84000 | J93: Баранова
B94: 83 | C94: 2009-10-08 | D94: 2 | E94: Доски | F94: 8 | G94: 16 | H94: =VLOOKUP(D94,Услуги!$C$17:$E$22,3) -> 400 | I94: 51200 | J94: Меньшова
B95: 84 | C95: 2009-10-08 | D95: 3 | E95: Кирпич | F95: 8 | G95: 26 | H95: =VLOOKUP(D95,Услуги!$C$17:$E$22,3) -> 150 | I95: 31200 | J95: Смирнова
B96: 85 | C96: 2009-10-08 | D96: 5 | E96: Цемент | F96: 8 | G96: 16 | H96: =VLOOKUP(D96,Услуги!$C$17:$E$22,3) -> 250 | I96: 32000 | J96: Смирнова
B97: 86 | C97: 2009-10-08 | D97: 3 | E97: Кирпич | F97: 10 | G97: 9 | H97: =VLOOKUP(D97,Услуги!$C$17:$E$22,3) -> 150 | I97: 13500 | J97: Баранова
B98: 87 | C98: 2009-10-08 | D98: 3 | E98: Кирпич | F98: 10 | G98: 14 | H98: =VLOOKUP(D98,Услуги!$C$17:$E$22,3) -> 150 | I98: 21000 | J98: Баранова
B99: 88 | C99: 2009-10-09 | D99: 1 | E99: Гравий | F99: 2 | G99: 22 | H99: =VLOOKUP(D99,Услуги!$C$17:$E$22,3) -> 500 | I99: 22000 | J99: Смирнова
B100: 89 | C100: 2009-10-09 | D100: 2 | E100: Доски | F100: 2 | G100: 12 | H100: =VLOOKUP(D100,Услуги!$C$17:$E$22,3) -> 400 | I100: 9600 | J100: Баранова
B101: 90 | C101: 2009-10-09 | D101: 3 | E101: Кирпич | F101: 3 | G101: 7 | H101: =VLOOKUP(D101,Услуги!$C$17:$E$22,3) -> 150 | I101: 3150 | J101: Меньшова
B102: 91 | C102: 2009-10-09 | D102: 1 | E102: Гравий | F102: 4 | G102: 20 | H102: =VLOOKUP(D102,Услуги!$C$17:$E$22,3) -> 500 | I102: 40000 | J102: Меньшова
B103: 92 | C103: 2009-10-09 | D103: 3 | E103: Кирпич | F103: 4 | G103: 22 | H103: =VLOOKUP(D103,Услуги!$C$17:$E$22,3) -> 150 | I103: 13200 | J103: Баранова
B104: 93 | C104: 2009-10-09 | D104: 3 | E104: Кирпич | F104: 5 | G104: 26 | H104: =VLOOKUP(D104,Услуги!$C$17:$E$22,3) -> 150 | I104: 19500 | J104: Баранова
B105: 94 | C105: 2009-10-09 | D105: 2 | E105: Доски | F105: 6 | G105: 9 | H105: =VLOOKUP(D105,Услуги!$C$17:$E$22,3) -> 400 | I105: 21600 | J105: Баранова
B106: 95 | C106: 2009-10-09 | D106: 3 | E106: Кирпич | F106: 10 | G106: 5 | H106: =VLOOKUP(D106,Услуги!$C$17:$E$22,3) -> 150 | I106: 7500 | J106: Смирнова
B107: 96 | C107: 2009-10-10 | D107: 1 | E107: Гравий | F107: 2 | G107: 26 | H107: =VLOOKUP(D107,Услуги!$C$17:$E$22,3) -> 500 | I107: 26000 | J107: Баранова
B108: 97 | C108: 2009-10-10 | D108: 1 | E108: Гравий | F108: 3 | G108: 26 | H108: =VLOOKUP(D108,Услуги!$C$17:$E$22,3) -> 500 | I108: 39000 | J108: Смирнова
B109: 98 | C109: 2009-10-10 | D109: 4 | E109: Песок | F109: 3 | G109: 6 | H109: =VLOOKUP(D109,Услуги!$C$17:$E$22,3) -> 300 | I109: 5400 | J109: Баранова
B110: 99 | C110: 2009-10-10 | D110: 4 | E110: Песок | F110: 4 | G110: 28 | H110: =VLOOKUP(D110,Услуги!$C$17:$E$22,3) -> 300 | I110: 33600 | J110: Меньшова
B111: 100 | C111: 2009-10-10 | D111: 2 | E111: Доски | F111: 5 | G111: 10 | H111: =VLOOKUP(D111,Услуги!$C$17:$E$22,3) -> 400 | I111: 20000 | J111: Меньшова
B112: 101 | C112: 2009-10-10 | D112: 3 | E112: Кирпич | F112: 5 | G112: 10 | H112: =VLOOKUP(D112,Услуги!$C$17:$E$22,3) -> 150 | I112: 7500 | J112: Смирнова
B113: 102 | C113: 2009-10-10 | D113: 1 | E113: Гравий | F113: 7 | G113: 24 | H113: =VLOOKUP(D113,Услуги!$C$17:$E$22,3) -> 500 | I113: 84000 | J113: Баранова
B114: 103 | C114: 2009-10-10 | D114: 1 | E114: Гравий | F114: 8 | G114: 16 | H114: =VLOOKUP(D114,Услуги!$C$17:$E$22,3) -> 500 | I114: 64000 | J114: Баранова
B115: 104 | C115: 2009-10-10 | D115: 3 | E115: Кирпич | F115: 8 | G115: 14 | H115: =VLOOKUP(D115,Услуги!$C$17:$E$22,3) -> 150 | I115: 16800 | J115: Смирнова
B116: 105 | C116: 2009-10-10 | D116: 3 | E116: Кирпич | F116: 8 | G116: 18 | H116: =VLOOKUP(D116,Услуги!$C$17:$E$22,3) -> 150 | I116: 21600 | J116: Баранова
B117: 106 | C117: 2009-10-10 | D117: 4 | E117: Песок | F117: 9 | G117: 25 | H117: =VLOOKUP(D117,Услуги!$C$17:$E$22,3) -> 300 | I117: 67500 | J117: Баранова
B118: 107 | C118: 2009-10-10 | D118: 3 | E118: Кирпич | F118: 10 | G118: 26 | H118: =VLOOKUP(D118,Услуги!$C$17:$E$22,3) -> 150 | I118: 39000 | J118: Смирнова
B119: 108 | C119: 2009-10-11 | D119: 5 | E119: Цемент | F119: 1 | G119: 8 | H119: =VLOOKUP(D119,Услуги!$C$17:$E$22,3) -> 250 | I119: 2000 | J119: Баранова
B120: 109 | C120: 2009-10-11 | D120: 2 | E120: Доски | F120: 2 | G120: 24 | H120: =VLOOKUP(D120,Услуги!$C$17:$E$22,3) -> 400 | I120: 19200 | J120: Баранова
B121: 110 | C121: 2009-10-11 | D121: 3 | E121: Кирпич | F121: 3 | G121: 10 | H121: =VLOOKUP(D121,Услуги!$C$17:$E$22,3) -> 150 | I121: 4500 | J121: Баранова
B122: 111 | C122: 2009-10-11 | D122: 5 | E122: Цемент | F122: 3 | G122: 17 | H122: =VLOOKUP(D122,Услуги!$C$17:$E$22,3) -> 250 | I122: 12750 | J122: Баранова
B123: 112 | C123: 2009-10-11 | D123: 2 | E123: Доски | F123: 4 | G123: 28 | H123: =VLOOKUP(D123,Услуги!$C$17:$E$22,3) -> 400 | I123: 44800 | J123: Баранова
B124: 113 | C124: 2009-10-11 | D124: 6 | E124: Щебень | F124: 4 | G124: 16 | H124: =VLOOKUP(D124,Услуги!$C$17:$E$22,3) -> 100 | I124: 6400 | J124: Баранова
B125: 114 | C125: 2009-10-11 | D125: 3 | E125: Кирпич | F125: 5 | G125: 24 | H125: =VLOOKUP(D125,Услуги!$C$17:$E$22,3) -> 150 | I125: 18000 | J125: Баранова
B126: 115 | C126: 2009-10-11 | D126: 4 | E126: Песок | F126: 6 | G126: 24 | H126: =VLOOKUP(D126,Услуги!$C$17:$E$22,3) -> 300 | I126: 43200 | J126: Смирнова
B127: 116 | C127: 2009-10-11 | D127: 6 | E127: Щебень | F127: 6 | G127: 16 | H127: =VLOOKUP(D127,Услуги!$C$17:$E$22,3) -> 100 | I127: 9600 | J127: Смирнова
B128: 117 | C128: 2009-10-11 | D128: 1 | E128: Гравий | F128: 7 | G128: 23 | H128: =VLOOKUP(D128,Услуги!$C$17:$E$22,3) -> 500 | I128: 80500 | J128: Баранова
B129: 118 | C129: 2009-10-11 | D129: 2 | E129: Доски | F129: 7 | G129: 16 | H129: =VLOOKUP(D129,Услуги!$C$17:$E$22,3) -> 400 | I129: 44800 | J129: Меньшова
B130: 119 | C130: 2009-10-11 | D130: 1 | E130: Гравий | F130: 8 | G130: 24 | H130: =VLOOKUP(D130,Услуги!$C$17:$E$22,3) -> 500 | I130: 96000 | J130: Меньшова
B131: 120 | C131: 2009-10-11 | D131: 6 | E131: Щебень | F131: 8 | G131: 10 | H131: =VLOOKUP(D131,Услуги!$C$17:$E$22,3) -> 100 | I131: 8000 | J131: Баранова
B132: 121 | C132: 2009-10-11 | D132: 3 | E132: Кирпич | F132: 9 | G132: 22 | H132: =VLOOKUP(D132,Услуги!$C$17:$E$22,3) -> 150 | I132: 29700 | J132: Баранова
B133: 122 | C133: 2009-10-11 | D133: 3 | E133: Кирпич | F133: 9 | G133: 21 | H133: =VLOOKUP(D133,Услуги!$C$17:$E$22,3) -> 150 | I133: 28350 | J133: Смирнова
B134: 123 | C134: 2009-10-11 | D134: 4 | E134: Песок | F134: 10 | G134: 22 | H134: =VLOOKUP(D134,Услуги!$C$17:$E$22,3) -> 300 | I134: 66000 | J134: Меньшова
B135: 124 | C135: 2009-10-12 | D135: 1 | E135: Гравий | F135: 1 | G135: 20 | H135: =VLOOKUP(D135,Услуги!$C$17:$E$22,3) -> 500 | I135: 10000 | J135: Баранова
B136: 125 | C136: 2009-10-12 | D136: 6 | E136: Щебень | F136: 1 | G136: 23 | H136: =VLOOKUP(D136,Услуги!$C$17:$E$22,3) -> 100 | I136: 2300 | J136: Смирнова
B137: 126 | C137: 2009-10-12 | D137: 6 | E137: Щебень | F137: 2 | G137: 7 | H137: =VLOOKUP(D137,Услуги!$C$17:$E$22,3) -> 100 | I137: 1400 | J137: Баранова
B138: 127 | C138: 2009-10-12 | D138: 6 | E138: Щебень | F138: 2 | G138: 18 | H138: =VLOOKUP(D138,Услуги!$C$17:$E$22,3) -> 100 | I138: 3600 | J138: Смирнова
B139: 128 | C139: 2009-10-12 | D139: 1 | E139: Гравий | F139: 5 | G139: 6 | H139: =VLOOKUP(D139,Услуги!$C$17:$E$22,3) -> 500 | I139: 15000 | J139: Баранова
B140: 129 | C140: 2009-10-12 | D140: 1 | E140: =VLOOKUP(D140,Справочник_товары,2) -> Гравий | F140: 5 | G140: 27 | H140: =VLOOKUP(D140,Услуги!$C$17:$E$22,3) -> 500 | I140: 67500 | J140: Баранова
B141: 130 | C141: 2009-10-12 | D141: 5 | E141: Цемент | F141: 5 | G141: 9 | H141: =VLOOKUP(D141,Услуги!$C$17:$E$22,3) -> 250 | I141: =F141*G141*H141 -> 11250 | J141: Меньшова
B142: 131 | C142: 2009-10-12 | D142: 4 | E142: Песок | F142: 6 | G142: 17 | H142: =VLOOKUP(D142,Услуги!$C$17:$E$22,3) -> 300 | I142: 30600 | J142: Меньшова
B143: 132 | C143: 2009-10-12 | D143: 1 | E143: Гравий | F143: 7 | G143: 12 | H143: =VLOOKUP(D143,Услуги!$C$17:$E$22,3) -> 500 | I143: 42000 | J143: Меньшова
B144: 133 | C144: 2009-10-12 | D144: 5 | E144: Цемент | F144: 8 | G144: 15 | H144: =VLOOKUP(D144,Услуги!$C$17:$E$22,3) -> 250 | I144: 30000 | J144: Меньшова
B145: 134 | C145: 2009-10-13 | D145: 4 | E145: Песок | F145: 1 | G145: 9 | H145: =VLOOKUP(D145,Услуги!$C$17:$E$22,3) -> 300 | I145: 2700 | J145: Меньшова
B146: 135 | C146: 2009-10-13 | D146: 1 | E146: Гравий | F146: 3 | G146: 26 | H146: =VLOOKUP(D146,Услуги!$C$17:$E$22,3) -> 500 | I146: 39000 | J146: Смирнова
B147: 136 | C147: 2009-10-13 | D147: 3 | E147: Кирпич | F147: 4 | G147: 15 | H147: =VLOOKUP(D147,Услуги!$C$17:$E$22,3) -> 150 | I147: 9000 | J147: Меньшова
B148: 137 | C148: 2009-10-13 | D148: 4 | E148: Песок | F148: 4 | G148: 18 | H148: =VLOOKUP(D148,Услуги!$C$17:$E$22,3) -> 300 | I148: 21600 | J148: Баранова
B149: 138 | C149: 2009-10-13 | D149: 2 | E149: Доски | F149: 5 | G149: 26 | H149: =VLOOKUP(D149,Услуги!$C$17:$E$22,3) -> 400 | I149: 52000 | J149: Меньшова
B150: 139 | C150: 2009-10-13 | D150: 4 | E150: Песок | F150: 5 | G150: 19 | H150: =VLOOKUP(D150,Услуги!$C$17:$E$22,3) -> 300 | I150: 28500 | J150: Смирнова
B151: 140 | C151: 2009-10-13 | D151: 5 | E151: Цемент | F151: 5 | G151: 14 | H151: =VLOOKUP(D151,Услуги!$C$17:$E$22,3) -> 250 | I151: 17500 | J151: Смирнова
B152: 141 | C152: 2009-10-13 | D152: 5 | E152: Цемент | F152: 6 | G152: 6 | H152: =VLOOKUP(D152,Услуги!$C$17:$E$22,3) -> 250 | I152: 9000 | J152: Смирнова
B153: 142 | C153: 2009-10-13 | D153: 2 | E153: Доски | F153: 7 | G153: 18 | H153: =VLOOKUP(D153,Услуги!$C$17:$E$22,3) -> 400 | I153: 50400 | J153: Меньшова
B154: 143 | C154: 2009-10-13 | D154: 2 | E154: Доски | F154: 8 | G154: 6 | H154: =VLOOKUP(D154,Услуги!$C$17:$E$22,3) -> 400 | I154: 19200 | J154: Меньшова
B155: 144 | C155: 2009-10-13 | D155: 6 | E155: Щебень | F155: 10 | G155: 23 | H155: =VLOOKUP(D155,Услуги!$C$17:$E$22,3) -> 100 | I155: 23000 | J155: Смирнова
B156: 145 | C156: 2009-10-14 | D156: 3 | E156: Кирпич | F156: 1 | G156: 14 | H156: =VLOOKUP(D156,Услуги!$C$17:$E$22,3) -> 150 | I156: 2100 | J156: Смирнова
B157: 146 | C157: 2009-10-14 | D157: 2 | E157: Доски | F157: 3 | G157: 25 | H157: =VLOOKUP(D157,Услуги!$C$17:$E$22,3) -> 400 | I157: 30000 | J157: Баранова
B158: 147 | C158: 2009-10-14 | D158: 3 | E158: Кирпич | F158: 4 | G158: 15 | H158: =VLOOKUP(D158,Услуги!$C$17:$E$22,3) -> 150 | I158: 9000 | J158: Баранова
B159: 148 | C159: 2009-10-14 | D159: 2 | E159: Доски | F159: 6 | G159: 11 | H159: =VLOOKUP(D159,Услуги!$C$17:$E$22,3) -> 400 | I159: 26400 | J159: Меньшова
B160: 149 | C160: 2009-10-14 | D160: 6 | E160: Щебень | F160: 6 | G160: 16 | H160: =VLOOKUP(D160,Услуги!$C$17:$E$22,3) -> 100 | I160: 9600 | J160: Смирнова
B161: 150 | C161: 2009-10-14 | D161: 4 | E161: Песок | F161: 7 | G161: 17 | H161: =VLOOKUP(D161,Услуги!$C$17:$E$22,3) -> 300 | I161: 35700 | J161: Меньшова
B162: 151 | C162: 2009-10-14 | D162: 3 | E162: Кирпич | F162: 8 | G162: 21 | H162: =VLOOKUP(D162,Услуги!$C$17:$E$22,3) -> 150 | I162: 25200 | J162: Баранова
B163: 152 | C163: 2009-10-14 | D163: 2 | E163: Доски | F163: 9 | G163: 19 | H163: =VLOOKUP(D163,Услуги!$C$17:$E$22,3) -> 400 | I163: 68400 | J163: Меньшова
B164: 153 | C164: 2009-10-15 | D164: 1 | E164: Гравий | F164: 4 | G164: 18 | H164: =VLOOKUP(D164,Услуги!$C$17:$E$22,3) -> 500 | I164: 36000 | J164: Баранова
B165: 154 | C165: 2009-10-15 | D165: 1 | E165: Гравий | F165: 5 | G165: 28 | H165: =VLOOKUP(D165,Услуги!$C$17:$E$22,3) -> 500 | I165: 70000 | J165: Меньшова
B166: 155 | C166: 2009-10-15 | D166: 5 | E166: Цемент | F166: 5 | G166: 13 | H166: =VLOOKUP(D166,Услуги!$C$17:$E$22,3) -> 250 | I166: 16250 | J166: Смирнова
B167: 156 | C167: 2009-10-15 | D167: 4 | E167: Песок | F167: 6 | G167: 25 | H167: =VLOOKUP(D167,Услуги!$C$17:$E$22,3) -> 300 | I167: 45000 | J167: Баранова
B168: 157 | C168: 2009-10-15 | D168: 6 | E168: Щебень | F168: 6 | G168: 6 | H168: =VLOOKUP(D168,Услуги!$C$17:$E$22,3) -> 100 | I168: 3600 | J168: Меньшова
B169: 158 | C169: 2009-10-15 | D169: 2 | E169: Доски | F169: 9 | G169: 12 | H169: =VLOOKUP(D169,Услуги!$C$17:$E$22,3) -> 400 | I169: 43200 | J169: Баранова
B170: 159 | C170: 2009-10-15 | D170: 3 | E170: Кирпич | F170: 9 | G170: 28 | H170: =VLOOKUP(D170,Услуги!$C$17:$E$22,3) -> 150 | I170: 37800 | J170: Смирнова
B171: 160 | C171: 2009-10-15 | D171: 1 | E171: Гравий | F171: 10 | G171: 13 | H171: =VLOOKUP(D171,Услуги!$C$17:$E$22,3) -> 500 | I171: 65000 | J171: Баранова
B172: 161 | C172: 2009-10-16 | D172: 3 | E172: Кирпич | F172: 1 | G172: 22 | H172: =VLOOKUP(D172,Услуги!$C$17:$E$22,3) -> 150 | I172: 3300 | J172: Баранова
B173: 162 | C173: 2009-10-16 | D173: 3 | E173: Кирпич | F173: 2 | G173: 16 | H173: =VLOOKUP(D173,Услуги!$C$17:$E$22,3) -> 150 | I173: 4800 | J173: Смирнова
B174: 163 | C174: 2009-10-16 | D174: 6 | E174: Щебень | F174: 3 | G174: 15 | H174: =VLOOKUP(D174,Услуги!$C$17:$E$22,3) -> 100 | I174: 4500 | J174: Смирнова
B175: 164 | C175: 2009-10-16 | D175: 1 | E175: Гравий | F175: 4 | G175: 26 | H175: =VLOOKUP(D175,Услуги!$C$17:$E$22,3) -> 500 | I175: 52000 | J175: Баранова
B176: 165 | C176: 2009-10-16 | D176: 5 | E176: Цемент | F176: 6 | G176: 8 | H176: =VLOOKUP(D176,Услуги!$C$17:$E$22,3) -> 250 | I176: 12000 | J176: Баранова
B177: 166 | C177: 2009-10-16 | D177: 5 | E177: Цемент | F177: 9 | G177: 21 | H177: =VLOOKUP(D177,Услуги!$C$17:$E$22,3) -> 250 | I177: 47250 | J177: Меньшова
B178: 167 | C178: 2009-10-16 | D178: 4 | E178: Песок | F178: 10 | G178: 21 | H178: =VLOOKUP(D178,Услуги!$C$17:$E$22,3) -> 300 | I178: 63000 | J178: Баранова
B179: 168 | C179: 2009-10-17 | D179: 6 | E179: Щебень | F179: 1 | G179: 21 | H179: =VLOOKUP(D179,Услуги!$C$17:$E$22,3) -> 100 | I179: 2100 | J179: Меньшова
B180: 169 | C180: 2009-10-17 | D180: 3 | E180: Кирпич | F180: 3 | G180: 14 | H180: =VLOOKUP(D180,Услуги!$C$17:$E$22,3) -> 150 | I180: 6300 | J180: Смирнова
B181: 170 | C181: 2009-10-17 | D181: 2 | E181: Доски | F181: 6 | G181: 7 | H181: =VLOOKUP(D181,Услуги!$C$17:$E$22,3) -> 400 | I181: 16800 | J181: Баранова
B182: 171 | C182: 2009-10-17 | D182: 4 | E182: Песок | F182: 7 | G182: 9 | H182: =VLOOKUP(D182,Услуги!$C$17:$E$22,3) -> 300 | I182: 18900 | J182: Смирнова
B183: 172 | C183: 2009-10-17 | D183: 5 | E183: Цемент | F183: 7 | G183: 23 | H183: =VLOOKUP(D183,Услуги!$C$17:$E$22,3) -> 250 | I183: 40250 | J183: Смирнова
B184: 173 | C184: 2009-10-17 | D184: 6 | E184: Щебень | F184: 8 | G184: 9 | H184: =VLOOKUP(D184,Услуги!$C$17:$E$22,3) -> 100 | I184: 7200 | J184: Меньшова
B185: 174 | C185: 2009-10-17 | D185: 1 | E185: Гравий | F185: 9 | G185: 19 | H185: =VLOOKUP(D185,Услуги!$C$17:$E$22,3) -> 500 | I185: 85500 | J185: Баранова
B186: 175 | C186: 2009-10-17 | D186: 6 | E186: Щебень | F186: 10 | G186: 19 | H186: =VLOOKUP(D186,Услуги!$C$17:$E$22,3) -> 100 | I186: 19000 | J186: Меньшова
B187: 176 | C187: 2009-10-18 | D187: 1 | E187: Гравий | F187: 1 | G187: 13 | H187: =VLOOKUP(D187,Услуги!$C$17:$E$22,3) -> 500 | I187: 6500 | J187: Смирнова
B188: 177 | C188: 2009-10-18 | D188: 2 | E188: Доски | F188: 1 | G188: 28 | H188: =VLOOKUP(D188,Услуги!$C$17:$E$22,3) -> 400 | I188: 11200 | J188: Баранова
B189: 178 | C189: 2009-10-18 | D189: 1 | E189: Гравий | F189: 3 | G189: 27 | H189: =VLOOKUP(D189,Услуги!$C$17:$E$22,3) -> 500 | I189: 40500 | J189: Смирнова
B190: 179 | C190: 2009-10-18 | D190: 6 | E190: Щебень | F190: 3 | G190: 15 | H190: =VLOOKUP(D190,Услуги!$C$17:$E$22,3) -> 100 | I190: 4500 | J190: Смирнова
B191: 180 | C191: 2009-10-18 | D191: 4 | E191: Песок | F191: 4 | G191: 13 | H191: =VLOOKUP(D191,Услуги!$C$17:$E$22,3) -> 300 | I191: 15600 | J191: Баранова
B192: 181 | C192: 2009-10-18 | D192: 5 | E192: Цемент | F192: 4 | G192: 15 | H192: =VLOOKUP(D192,Услуги!$C$17:$E$22,3) -> 250 | I192: 15000 | J192: Меньшова
B193: 182 | C193: 2009-10-18 | D193: 3 | E193: Кирпич | F193: 5 | G193: 9 | H193: =VLOOKUP(D193,Услуги!$C$17:$E$22,3) -> 150 | I193: 6750 | J193: Баранова
B194: 183 | C194: 2009-10-18 | D194: 5 | E194: Цемент | F194: 7 | G194: 23 | H194: =VLOOKUP(D194,Услуги!$C$17:$E$22,3) -> 250 | I194: 40250 | J194: Баранова
B195: 184 | C195: 2009-10-18 | D195: 1 | E195: Гравий | F195: 9 | G195: 8 | H195: =VLOOKUP(D195,Услуги!$C$17:$E$22,3) -> 500 | I195: 36000 | J195: Смирнова
B196: 185 | C196: 2009-10-18 | D196: 5 | E196: Цемент | F196: 9 | G196: 17 | H196: =VLOOKUP(D196,Услуги!$C$17:$E$22,3) -> 250 | I196: 38250 | J196: Меньшова
B197: 186 | C197: 2009-10-19 | D197: 1 | E197: Гравий | F197: 3 | G197: 21 | H197: =VLOOKUP(D197,Услуги!$C$17:$E$22,3) -> 500 | I197: 31500 | J197: Меньшова
B198: 187 | C198: 2009-10-19 | D198: 3 | E198: Кирпич | F198: 4 | G198: 10 | H198: =VLOOKUP(D198,Услуги!$C$17:$E$22,3) -> 150 | I198: 6000 | J198: Меньшова
B199: 188 | C199: 2009-10-19 | D199: 4 | E199: Песок | F199: 6 | G199: 11 | H199: =VLOOKUP(D199,Услуги!$C$17:$E$22,3) -> 300 | I199: 19800 | J199: Смирнова
B200: 189 | C200: 2009-10-19 | D200: 3 | E200: Кирпич | F200: 7 | G200: 18 | H200: =VLOOKUP(D200,Услуги!$C$17:$E$22,3) -> 150 | I200: 18900 | J200: Баранова
B201: 190 | C201: 2009-10-19 | D201: 4 | E201: Песок | F201: 7 | G201: 23 | H201: =VLOOKUP(D201,Услуги!$C$17:$E$22,3) -> 300 | I201: 48300 | J201: Баранова
B202: 191 | C202: 2009-10-19 | D202: 5 | E202: Цемент | F202: 7 | G202: 6 | H202: =VLOOKUP(D202,Услуги!$C$17:$E$22,3) -> 250 | I202: 10500 | J202: Меньшова
B203: 192 | C203: 2009-10-19 | D203: 2 | E203: Доски | F203: 9 | G203: 23 | H203: =VLOOKUP(D203,Услуги!$C$17:$E$22,3) -> 400 | I203: 82800 | J203: Меньшова
... 112 more rows

Sheet Оформление
P5: Гравий
P6: Доски
P7: Кирпич
P8: Песок
P9: Цемент
P10: Щебень
D11: Заказ | E11: 305
D12: Дата | E12: =TODAY() -> 2020-09-08
D13: Сотрудник | E13: Смирнова
D14: Материал | E14: Доски
D15: Расстояние | E15: -10
D16: Количество | E16: 22
D17: Цена | E17: =PoiskCena(E14,E15) -> 400
D18: Сумма | E18: =E15*E16*E17 -> -88000

Sheet Test
C4: Material | G4: № теста | H4: Material | I4: Rast | J4: Kolvo | K4: Rezult | L4: Proverka
C5: Гравий | G5: 1 | H5: Гравий | I5: 10 | J5: 10 | K5: 50000 | L5: +
C6: Доски | G6: 2 | H6: Гравий | I6: 10 | J6: -10 | K6: Error | L6: -
C7: Кирпич | G7: 3 | H7: Гравий | I7: 50 | J7: 10 | K7: 225000 | L7: +
C8: Песок | G8: 4 | H8: Гравий | I8: 50 | J8: -10 | K8: Error | L8: -
C9: Цемент | G9: 5 | H9: Гравий | I9: 200 | J9: 10 | K9: 800000 | L9: +
C10: Щебень | G10: 6 | H10: Гравий | I10: 200 | J10: -10 | K10: Error | L10: -
C11: ttttt | G11: 7 | H11: Гравий | I11: -10 | J11: 10 | K11: Error | L11: -
G12: 8 | H12: Гравий | I12: -10 | J12: -10 | K12: Error | L12: -
C13: Rast | G13: 9 | H13: Доски | I13: 10 | J13: 10 | K13: 40000 | L13: +
C14: 10 | G14: 10 | H14: Доски | I14: 10 | J14: -10 | K14: Error | L14: -
C15: 50 | G15: 11 | H15: Доски | I15: 50 | J15: 10 | K15: 175000 | L15: +
C16: 200 | G16: 12 | H16: Доски | I16: 50 | J16: -10 | K16: Error | L16: -
C17: -10 | G17: 13 | H17: Доски | I17: 200 | J17: 10 | K17: 600000 | L17: +
G18: 14 | H18: Доски | I18: 200 | J18: -10 | K18: Error | L18: -
G19: 15 | H19: Доски | I19: -10 | J19: 10 | K19: Error | L19: -
G20: 16 | H20: Доски | I20: -10 | J20: -10 | K20: Error | L20: -
C21: Kolvo | G21: 17 | H21: Кирпич | I21: 10 | J21: 10 | K21: 15000 | L21: +
C22: 10 | G22: 18 | H22: Кирпич | I22: 10 | J22: -10 | K22: Error | L22: -
C23: -10 | G23: 19 | H23: Кирпич | I23: 50 | J23: 10 | K23: 65000 | L23: +
G24: 20 | H24: Кирпич | I24: 50 | J24: -10 | K24: Error | L24: -
G25: 21 | H25: Кирпич | I25: 200 | J25: 10 | K25: 220000 | L25: +
B26: 500 | C26: 450 | D26: 400 | G26: 22 | H26: Кирпич | I26: 200 | J26: -10 | K26: Error | L26: -
B27: 400 | C27: 350 | D27: 300 | G27: 23 | H27: Кирпич | I27: -10 | J27: 10 | K27: Error | L27: -
B28: 150 | C28: 130 | D28: 110 | G28: 24 | H28: Кирпич | I28: -10 | J28: -10 | K28: Error | L28: -
B29: 300 | C29: 260 | D29: 220 | G29: 25 | H29: Песок | I29: 10 | J29: 10 | K29: 30000 | L29: +
B30: 250 | C30: 210 | D30: 180 | G30: 26 | H30: Песок | I30: 10 | J30: -10 | K30: Error | L30: -
B31: 100 | C31: 90 | D31: 80 | G31: 27 | H31: Песок | I31: 50 | J31: 10 | K31: 130000 | L31: +
G32: 28 | H32: Песок | I32: 50 | J32: -10 | K32: Error | L32: -
G33: 29 | H33: Песок | I33: 200 | J33: 10 | K33: 440000 | L33: +
G34: 30 | H34: Песок | I34: 200 | J34: -10 | K34: Error | L34: -
G35: 31 | H35: Песок | I35: -10 | J35: 10 | K35: Error | L35: -
G36: 32 | H36: Песок | I36: -10 | J36: -10 | K36: Error | L36: -
G37: 33 | H37: Цемент | I37: 10 | J37: 10 | K37: 25000 | L37: +
G38: 34 | H38: Цемент | I38: 10 | J38: -10 | K38: Error | L38: -
G39: 35 | H39: Цемент | I39: 50 | J39: 10 | K39: 105000 | L39: +
G40: 36 | H40: Цемент | I40: 50 | J40: -10 | K40: Error | L40: -
G41: 37 | H41: Цемент | I41: 200 | J41: 10 | K41: 360000 | L41: +
G42: 38 | H42: Цемент | I42: 200 | J42: -10 | K42: Error | L42: -
G43: 39 | H43: Цемент | I43: -10 | J43: 10 | K43: Error | L43: -
G44: 40 | H44: Цемент | I44: -10 | J44: -10 | K44: Error | L44: -
G45: 41 | H45: Щебень | I45: 10 | J45: 10 | K45: 10000 | L45: +
G46: 42 | H46: Щебень | I46: 10 | J46: -10 | K46: Error | L46: -
G47: 43 | H47: Щебень | I47: 50 | J47: 10 | K47: 45000 | L47: +
G48: 44 | H48: Щебень | I48: 50 | J48: -10 | K48: Error | L48: -
G49: 45 | H49: Щебень | I49: 200 | J49: 10 | K49: 160000 | L49: +
G50: 46 | H50: Щебень | I50: 200 | J50: -10 | K50: Error | L50: -
G51: 47 | H51: Щебень | I51: -10 | J51: 10 | K51: Error | L51: -
G52: 48 | H52: Щебень | I52: -10 | J52: -10 | K52: Error | L52: -
G53: 49 | H53: ttttt | I53: 10 | J53: 10 | K53: Error | L53: -
G54: 50 | H54: ttttt | I54: 10 | J54: -10 | K54: Error | L54: -
G55: 51 | H55: ttttt | I55: 50 | J55: 10 | K55: Error | L55: -
G56: 52 | H56: ttttt | I56: 50 | J56: -10 | K56: Error | L56: -
G57: 53 | H57: ttttt | I57: 200 | J57: 10 | K57: Error | L57: -
G58: 54 | H58: ttttt | I58: 200 | J58: -10 | K58: Error | L58: -
G59: 55 | H59: ttttt | I59: -10 | J59: 10 | K59: Error | L59: -
G60: 56 | H60: ttttt | I60: -10 | J60: -10 | K60: Error | L60: -

Sheet Сотрудники
B6: Таб.№ | C6: Фамилия | D6: Имя | E6: Пол | F6: Отдел | G6: Оклад | H6: Дата рожд. | I6: Дети | J6: Адрес | K6: Телефон
B7: 100 | C7: Александров | D7: Алексей | E7: м | F7: Плановый | G7: 14500 | H7: 1965 | I7: 1 | J7: ул. Заовражная | K7: 231686 | L7: Директор
B8: 200 | C8: Петрова | D8: Мария | E8: ж | F8: Производственный | G8: 10000 | H8: 1953 | I8: 0 | J8: ул. Ленина | K8: 401623 | L8: Бухгалтер
A9: 1 | B9: 300 | C9: Смирнова | D9: Дарья | E9: ж | F9: Сбыта | G9: 13500 | H9: 1971 | I9: 1 | J9: ул. Мира | K9: 298466 | L9: Водитель
A10: 2 | B10: 400 | C10: Меньшова | D10: Людмила | E10: ж | F10: Снабжения | G10: 15500 | H10: 1957 | I10: 2 | J10: ул. Заовражная | K10: 272137 | L10: Водитель
A11: 3 | B11: 500 | C11: Баранова | D11: Светлана | E11: ж | F11: Сбыта | G11: 13000 | H11: 1945 | I11: 2 | J11: ул. Водопроводная | K11: 341389 | L11: Водитель

Sheet Начисление зп
B12: Таб.№ | C12: ФИО | D12: Начислено | E12: Удержано | F12: К выдаче | G12: Дети | H12: Сумма | I12: На детей
B13: =Сотрудники!B7 -> 100 | C13: =Сотрудники!C7 & " " & LEFT(Сотрудники!D7) & "." -> Александров А. | D13: =GETPIVOTDATA("Сумма",$C$24)*10% -> 2058425 | E13: =IF(H13<280000,(D13-I13)*0.13,D13*0.13) -> 267413.25 | F13: =D13-E13 -> 1791011.75 | G13: =Сотрудники!I7 -> 1 | H13: =D13*$U$14 -> 0 | I13: =IF(G13<3,G13*1400,2800+(G13-2)*3000) -> 1400
B14: =Сотрудники!B8 -> 200 | C14: =Сотрудники!C8 & " " & LEFT(Сотрудники!D8) & "." -> Петрова М. | D14: =GETPIVOTDATA("Сумма",$C$24)*5% -> 1029212.5 | E14: =IF(H14<280000,(D14-I14)*0.13,D14*0.13) -> 133797.625 | F14: =D14-E14 -> 895414.875 | G14: =Сотрудники!I8 -> 0 | H14: =D14*$U$14 -> 0 | I14: =IF(G14<3,G14*1400,2800+(G14-2)*3000) -> 0
B15: =Сотрудники!B9 -> 300 | C15: =Сотрудники!C9 & " " & LEFT(Сотрудники!D9) & "." -> Смирнова Д. | D15: =GETPIVOTDATA("Сумма",$C$24,"Сотрудник","Смирнова")*20% -> 468600 | E15: =IF(H15<280000,(D15-I15)*0.13,D15*0.13) -> 60736 | F15: =D15-E15 -> 407864 | G15: =Сотрудники!I9 -> 1 | H15: =D15*$U$14 -> 0 | I15: =IF(G15<3,G15*1400,2800+(G15-2)*3000) -> 1400
B16: =Сотрудники!B10 -> 400 | C16: =Сотрудники!C10 & " " & LEFT(Сотрудники!D10) & "." -> Меньшова Л. | D16: =GETPIVOTDATA("Сумма",$C$24,"Сотрудник","Меньшова")*20% -> 3091050 | E16: =IF(H16<280000,(D16-I16)*0.13,D16*0.13) -> 401472.5 | F16: =D16-E16 -> 2689577.5 | G16: =Сотрудники!I10 -> 2 | H16: =D16*$U$14 -> 0 | I16: =IF(G16<3,G16*1400,2800+(G16-2)*3000) -> 2800
B17: =Сотрудники!B11 -> 500 | C17: =Сотрудники!C11 & " " & LEFT(Сотрудники!D11) & "." -> Баранова С. | D17: =GETPIVOTDATA("Сумма",$C$24,"Сотрудник","Баранова")*20% -> 557200 | E17: =IF(H17<280000,(D17-I17)*0.13,D17*0.13) -> 72072 | F17: =D17-E17 -> 485128 | G17: =Сотрудники!I11 -> 2 | H17: =D17*$U$14 -> 0 | I17: =IF(G17<3,G17*1400,2800+(G17-2)*3000) -> 2800
C24: Сумма по полю Сумма
C25: Сотрудник | D25: Итог | F25: =PoiskMax(D13:D17,C13:C17) -> Меньшова Л.
C26: Баранова | D26: 2786000
C27: Меньшова | D27: 15455250
C28: Смирнова | D28: 2343000
C29: Общий итог | D29: 20584250

Sheet Отчеты
Q6: Дата продажи | R6: Дата продажи
Q7: =">="&F6 -> >= | R7: ="<="&F7 -> <=
C8: Сумма по полю Сумма
C9: Наименование | D9: Итог
C10: Гравий | D10: 2837000
C11: Доски | D11: 1595600 | U11: Выручка
C12: Кирпич | D12: 13780650 | U12: Средняя выручка
C13: Песок | D13: 1072200 | U13: Максимальная выручка
C14: Цемент | D14: 926500 | U14: Минимальная выручка
C15: Щебень | D15: 372300 | U15: 4
C16: Общий итог | D16: 20584250
J17: Самый доходный | K17: =PoiskMax(D10:D15,C10:C15) -> Кирпич
J18: Самый невыгодный | K18: =PoiskMin(D10:D15,C10:C15) -> Щебень
C20: Количество по полю Сумма
C21: Наименование | D21: Итог
C22: Гравий | D22: 64
C23: Доски | D23: 49
C24: Кирпич | D24: 71
C25: Песок | D25: 37
C26: Цемент | D26: 39
C27: Щебень | D27: 42
C28: Общий итог | D28: 302
C32: Количество по полю Наименование | D32: Сотрудник
C33: Наименование | D33: Баранова | E33: Меньшова | F33: Смирнова | G33: Общий итог
C34: Гравий | D34: 23 | E34: 21 | F34: 20 | G34: 64
C35: Доски | D35: 14 | E35: 22 | F35: 13 | G35: 49
C36: Кирпич | D36: 26 | E36: 20 | F36: 25 | G36: 71
C37: Песок | D37: 15 | E37: 10 | F37: 12 | G37: 37
C38: Цемент | D38: 11 | E38: 12 | F38: 16 | G38: 39
C39: Щебень | D39: 15 | E39: 11 | F39: 16 | G39: 42
C40: Общий итог | D40: 104 | E40: 96 | F40: 102 | G40: 302
C43: Количество по полю Сотрудник
C44: Сотрудник | D44: Итог
C45: Баранова | D45: 104
C46: Меньшова | D46: 96
C47: Смирнова | D47: 102
C48: Общий итог | D48: 302
C51: Сумма по полю Расстояние
C52: Наименование | D52: Итог
C53: Гравий | D53: 1165
C54: Доски | D54: 849
C55: Кирпич | D55: 1272
C56: Песок | D56: 617
C57: Цемент | D57: 639
C58: Щебень | D58: 725
C59: Общий итог | D59: 5267
C63: Сумма по полю Количество
C64: Наименование | D64: Итог
C65: Гравий | D65: 328
C66: Доски | D66: 235
C67: Кирпич | D67: 1942
C68: Песок | D68: 209
C69: Цемент | D69: 231
C70: Щебень | D70: 215
C71: Общий итог | D71: 3160

Sheet Доступ
H1: 1 | I1: Заставка | L1: Rectangle 9
H2: 2 | I2: Меню | K2: Товары | L2: CommandButton1
H3: 3 | I3: Товары | K3: Продажи | L3: CommandButton2
A4: Номер листа | B4: Название | C4: Директор | D4: Бухгалтер | E4: Менеджер | F4: Системный администратор | H4: 4 | I4: Продажи | K4: Поставки | L4: CommandButton3
B5: Пароль | C5: a | D5: b | E5: c | F5: d | H5: 5 | I5: Поставки | K5: Поставщики | L5: CommandButton4
A6: 1 | B6: Заставка | C6: 1 | D6: 1 | E6: 1 | F6: 1 | H6: 6 | I6: Поставщики | K6: Сотрудники | L6: CommandButton5
A7: 2 | B7: Меню | C7: 1 | D7: 1 | E7: 1 | F7: 1 | H7: 7 | I7: Сотрудники | K7: Начисление зп | L7: CommandButton6
A8: 3 | B8: Товары | C8: 1 | D8: 1 | E8: 2 | F8: 1 | H8: 8 | I8: Начисление зп | K8: Отчеты | L8: CommandButton7
A9: 4 | B9: Продажи | C9: 1 | D9: 1 | E9: 2 | F9: 1 | H9: 9 | I9: Отчеты | K9: Доступ | L9: CommandButton8
A10: 5 | B10: Поставки | C10: 1 | D10: 1 | E10: 2 | F10: 1 | H10: 10 | I10: Доступ | K10: Выход | L10: CommandButton9
A11: 6 | B11: Поставщики | C11: 1 | D11: 1 | E11: 2 | F11: 1
A12: 7 | B12: Сотрудники | C12: 1 | D12: 2 | E12: 0 | F12: 1
A13: 8 | B13: Начисление зп | C13: 1 | D13: 2 | E13: 0 | F13: 1
A14: 9 | B14: Отчеты | C14: 1 | D14: 1 | E14: 2 | F14: 2
A15: 10 | B15: Доступ | C15: 0 | D15: 0 | E15: 0 | F15: 2
